bitfinex-derivatives/quotes_ETHF0:USTF0_20250709
["timestamp","ask_amount","ask_price","bid_price","bid_amount"]
[1752050921860,4.71542839,2617.0,2616.9,3.64126]
[1752050922066,0.76981137,2617.2,2617.1,0.7641]
[1752050922360,0.76981137,2617.2,2617.1,0.6342]
[1752050922361,2.27759011,2617.2,2617.1,0.6342]
[1752050922759,2.27759011,2617.2,2617.1,1.6284]
[1752050922963,2.27759011,2617.2,2617.1,3.6023]
[1752050923157,2.27759011,2617.2,2617.1,4.3664]
[1752050923864,2.27759011,2617.2,2617.1,3.6023]
[1752050924166,1.51350011,2617.2,2617.1,4.3664]
[1752050924861,0.00572137,2617.2,2617.1,4.3664]
[1752050928859,3.21352137,2617.2,2617.1,4.3664]
[1752050929060,0.00572137,2617.2,2617.1,4.3664]
[1752050932063,0.00572137,2617.2,2617.1,5.64610527]
[1752050934460,3.2078,2617.6,2617.5,0.76399]
[1752050934664,4.70577081,2617.6,2617.5,3.67209527]
[1752050935264,4.70577081,2617.6,2617.5,2.39239]
[1752050935464,4.70577081,2617.6,2617.5,4.33799527]
[1752050935765,3.2078,2617.6,2617.5,4.33799527]
[1752050939366,3.2078,2617.6,2617.5,3.05829]
[1752050939567,3.2078,2617.6,2617.5,4.33799527]
[1752050942564,0.76373,2618.4,2618.3,0.76373]
[1752050942768,2.25393235,2618.4,2618.3,1.39793]
[1752050942969,1.49020235,2618.4,2618.3,2.39213]
[1752050943270,1.27970527,2618.7,2618.4,0.76369]
[1752050943470,0.7637,2618.5,2618.4,1.39793]
[1752050943768,2.25360693,2618.5,2618.4,2.39213]
[1752050943969,2.25360693,2618.5,2618.4,1.39793]
[1752050944168,3.8754,2618.8,2618.7,0.76364]
[1752050944370,4.68443283,2618.8,2618.7,2.39204]
[1752050945172,3.97141,2618.8,2618.7,2.39204]
[1752050945471,3.97141,2618.8,2618.7,1.39784]
[1752050945670,3.2078,2618.8,2618.7,1.39784]
[1752050946374,2.04330527,2618.9,2618.8,0.76361]
[1752050946569,0.7636,2618.9,2618.8,0.76361]
[1752050946873,0.7636,2618.9,2618.8,0.6342]
[1752050947073,2.04327527,2619.0,2618.8,1.3978]
[1752050947274,0.76358,2618.9,2618.8,1.3978]
[1752050947475,1.44658,2618.9,2618.8,1.3978]
[1752050947971,0.76363,2618.8,2618.6,2.3239]
[1752050948171,0.76363,2618.8,2618.6,3.71184]
[1752050948476,0.76363,2618.8,2618.7,0.76364]
[1752050948775,0.76363,2618.8,2618.7,1.38794]
[1752050949775,0.76363,2618.8,2618.7,0.6243]
[1752050949973,4.48750527,2618.8,2618.2,0.00572137]
[1752050950177,1.27970527,2618.5,2618.3,27.62905]
[1752050950478,0.76373,2618.4,2618.3,27.8561]
[1752050950673,4.2497,2618.8,2618.3,28.61983]
[1752050950872,1.27970527,2618.7,2618.4,1.75452]
[1752050951073,0.7637,2618.5,2618.4,1.6151]
[1752050951374,2.04340527,2618.5,2618.4,1.6151]
[1752050951573,2.04340527,2618.5,2618.4,0.6243]
[1752050951872,2.04340527,2618.5,2618.4,1.6151]
[1752050952672,0.76375,2618.3,2618.2,0.00572137]
[1752050952873,2.04345527,2618.3,2618.2,0.00572137]
[1752050954571,2.04345527,2618.3,2617.8,0.9908]
[1752050954572,0.76387,2617.9,2617.8,0.9908]
[1752050954768,0.76387,2617.9,2617.8,1.6151]
[1752050957674,0.76387,2617.9,2617.8,0.6243]
[1752050958381,0.76387,2617.9,2617.8,1.6151]
[1752050958575,0.76387,2617.9,2617.8,0.6243]
[1752050959277,1.27970527,2617.9,2617.6,3.97174]
[1752050959581,0.7639,2617.8,2617.7,2.37903]
[1752050960281,0.76393,2617.7,2617.6,3.2078]
[1752050960482,0.76399,2617.5,2617.4,1.3465]
[1752050960883,0.76399,2617.5,2617.4,2.9616]
[1752050961876,0.76399,2617.5,2617.3,0.76403]
[1752050961877,4.48750527,2617.5,2617.0,0.76412]
[1752050962076,2.04375527,2617.3,2617.2,0.6243]
[1752050963383,0.76405,2617.3,2617.2,0.6243]
[1752050963683,1.43993,2617.4,2617.2,0.6243]
[1752050963883,0.76405,2617.3,2617.2,0.6243]
[1752050964181,0.76405,2617.3,2617.2,1.38838]
[1752050964482,0.76405,2617.3,2617.2,0.6243]
[1752050965182,1.43994,2617.4,2617.2,1.38838]
[1752050965381,0.76404,2617.4,2617.3,1.6151]
[1752050965578,0.6336,2617.6,2617.4,0.764]
[1752050965780,3.97175,2617.7,2617.5,0.76397]
[1752050966180,3.2078,2617.7,2617.6,0.76396]
[1752050966381,1.3975,2617.8,2617.6,0.76396]
[1752050966382,0.76389,2617.9,2617.7,0.76392]
[1752050966580,2.22786197,2617.8,2617.7,1.42472]
[1752050966883,0.76389,2617.9,2617.7,1.42472]
[1752050967086,0.76389,2617.9,2617.8,0.9908]
[1752050967383,3.2078,2618.0,2617.9,0.76387]
[1752050967588,4.67183814,2618.0,2617.9,54.92397]
[1752050967891,3.2078,2618.0,2617.9,54.92397]
[1752050971381,0.76377,2618.3,2618.1,0.76378]
[1752050971582,0.76377,2618.3,2618.2,54.89188]
[1752050971785,3.2078,2618.4,2618.2,54.89188]
[1752050971985,3.2078,2618.4,2618.3,1.75455]
[1752050972286,3.2078,2618.4,2618.3,2.37885]
[1752050972586,3.2078,2618.4,2618.3,3.02085]
[1752050974388,3.97153,2618.4,2618.3,3.02085]
[1752050975893,3.2078,2618.4,2618.3,3.02085]
[1752050977386,3.2078,2618.4,2618.3,4.30055527]
[1752050977689,0.76366,2618.7,2618.6,0.76367]
[1752050977890,0.76366,2618.7,2618.6,2.37057]
[1752050978389,3.8634,2618.8,2618.7,0.76364]
[1752050978390,4.62704,2618.8,2618.7,0.76364]
[1752050978690,4.62704,2618.8,2618.7,1.43614]
[1752050978983,4.62704,2618.8,2618.7,0.6725]
[1752050979390,4.62704,2618.8,2618.7,1.43614]
[1752050980187,4.62704,2618.8,2618.7,0.6725]
[1752050981587,3.97144,2618.8,2618.7,3.63814]
[1752050981788,3.97144,2618.8,2618.7,2.8745]
[1752050982288,5.42554924,2618.8,2618.7,2.8745]
[1752050982891,5.42554924,2618.8,2618.7,3.5211]
[1752050984393,5.42554924,2618.8,2618.7,4.28474]
[1752050984690,5.42554924,2618.8,2618.7,3.5211]
[1752050985084,5.42554924,2618.8,2618.7,2.5867]
[1752050987692,5.42554924,2618.8,2618.7,3.5211]
[1752050988193,2.21774924,2618.8,2618.7,3.5211]
[1752050989294,0.76364,2618.8,2618.7,3.5211]
[1752050994397,0.76364,2618.8,2618.7,4.28474]
[1752050994994,0.76364,2618.8,2618.7,3.5211]
[1752050996197,2.21945919,2618.8,2618.7,3.5211]
[1752050996998,2.21945919,2618.8,2618.7,55.8801]
[1752050998203,2.21945919,2618.8,2618.7,56.64374]
[1752051002302,2.21945919,2618.8,2618.7,55.8801]
[1752051003304,2.21945919,2618.8,2618.7,56.64374]
[1752051003606,1.45581919,2618.8,2618.7,56.64374]
[1752051004601,1.45581919,2618.8,2618.7,57.92344527]
[1752051005502,3.2078,2619.1,2619.0,0.76355]
[1752051005804,3.2078,2619.1,2619.0,54.68145]
[1752051005805,1.45580704,2619.1,2619.0,54.68145]
[1752051006106,0.76342,2619.5,2619.4,0.76343]
[1752051006301,2.21953528,2619.5,2619.4,54.67833]
[1752051006506,1.45611528,2619.5,2619.4,55.95803527]
[1752051006707,0.76338,2619.6,2619.5,0.7634]
[1752051006907,2.21846456,2619.6,2619.5,3.449]
[1752051007201,2.21846456,2619.6,2619.5,3.62]
[1752051008402,2.21846456,2619.6,2619.5,2.0131]
[1752051008704,2.21846456,2619.6,2619.4,52.308]
[1752051008705,0.7634,2619.5,2619.4,52.308]
[1752051008903,0.76349,2619.2,2619.1,0.9819]
[1752051009208,0.76352,2619.1,2619.0,0.6393]
[1752051009404,0.76361,2618.8,2618.7,3.2078]
[1752051009610,0.76361,2618.8,2618.7,3.89]
[1752051009809,0.76361,2618.8,2618.7,30.063]
[1752051010510,0.76361,2618.8,2618.7,31.0449]
[1752051011002,0.76358,2619.0,2618.8,0.7636]
[1752051011208,0.76358,2619.0,2618.9,28.13790527]
[1752051011404,0.76358,2619.0,2618.9,1.6641]
[1752051011600,2.21433495,2619.0,2618.9,0.6822]
[1752051012107,2.90353495,2619.0,2618.9,0.6822]
[1752051016213,2.9045163,2619.0,2618.9,0.6822]
[1752051019414,0.76361,2618.8,2618.7,3.2078]
[1752051019612,0.76361,2618.8,2618.7,3.89]
[1752051020004,0.76361,2618.8,2618.7,4.8719]
[1752051020711,0.76361,2618.8,2618.7,6.2016]
[1752051022912,0.76361,2618.8,2618.7,6.96524]
[1752051023113,0.76361,2618.8,2618.7,8.24494527]
[1752051024213,0.76361,2618.8,2618.7,7.48130527]
[1752051024513,0.76361,2618.8,2618.7,6.2016]
[1752051026019,0.76361,2618.8,2618.7,3.75744]
[1752051026920,0.76361,2618.8,2618.7,5.03714527]
[1752051031525,3.2078,2619.1,2618.7,4.27350527]
[1752051031728,0.76359,2618.9,2618.8,2.0263]
[1752051031927,0.76361,2618.8,2618.7,2.04332527]
[1752051032127,0.76361,2618.8,2618.7,2.72552527]
[1752051032629,1.48101464,2618.9,2618.8,0.76361]
[1752051032828,0.76356,2619.0,2618.9,0.76358]
[1752051033029,0.76356,2619.0,2618.9,1.44578]
[1752051033228,2.2446354,2619.0,2618.9,2.42768]
[1752051034928,1.4810754,2619.0,2618.9,2.42768]
[1752051035130,2.2446254,2619.0,2618.9,2.42768]
[1752051035927,1.4810754,2619.0,2618.9,3.70738527]
[1752051037031,0.76353,2619.1,2619.0,0.76355]
[1752051037333,2.24536995,2619.1,2619.0,2.42765]
[1752051037529,2.24536995,2619.1,2619.0,3.05305]
[1752051042834,1.48183995,2619.1,2619.0,3.05305]
[1752051044438,0.76923137,2619.2,2619.1,0.76352]
[1752051044634,0.76923137,2619.2,2619.1,2.44002]
[1752051044836,2.25063362,2619.2,2619.1,2.44002]
[1752051046337,1.48712362,2619.2,2619.1,2.44002]
[1752051046937,2.25061362,2619.2,2619.1,2.44002]
[1752051049040,2.25061362,2619.2,2619.1,3.70432]
[1752051052045,2.25061362,2619.2,2619.1,2.9408]
[1752051052446,2.25061362,2619.2,2619.1,3.70432]
[1752051053346,0.76355,2619.0,2618.9,0.76357]
[1752051053542,0.76358,2618.9,2618.8,1.0325]
[1752051053746,1.39368,2618.9,2618.8,1.6765]
[1752051055249,1.39368,2618.9,2618.8,1.0325]
[1752051056846,0.76367,2618.6,2618.5,3.97149]
[1752051057048,0.76367,2618.6,2618.5,5.92989]
[1752051057547,0.76367,2618.6,2618.5,6.96239]
[1752051057748,0.76367,2618.6,2618.5,6.1987]
[1752051057944,0.76367,2618.6,2618.5,2.9909]
[1752051058150,0.76367,2618.6,2618.5,1.6765]
[1752051059547,2.23528172,2618.6,2618.5,0.644]
[1752051060249,2.23528172,2618.6,2618.5,1.6765]
[1752051060446,2.23528172,2618.6,2618.5,2.9642]
[1752051061753,0.76366,2618.7,2618.5,3.7279]
[1752051062050,0.76366,2618.7,2618.6,3.59990527]
[1752051062250,0.76366,2618.7,2618.6,4.24390527]
[1752051064456,0.76366,2618.7,2618.6,5.00757527]
[1752051065657,0.76366,2618.7,2618.6,4.24390527]
[1752051065950,2.2357829,2618.7,2618.6,2.9642]
[1752051066760,0.76366,2618.7,2618.6,2.9642]
[1752051070862,2.23471326,2618.7,2618.6,2.9642]
[1752051073564,0.7637,2618.5,2618.4,0.9935]
[1752051073760,0.7637,2618.5,2618.4,1.6289]
[1752051073963,0.7637,2618.5,2618.4,2.9304]
[1752051074464,0.7637,2618.5,2618.4,4.97381527]
[1752051074760,0.76367,2618.6,2618.5,0.76368]
[1752051074963,0.76367,2618.6,2618.5,3.69408]
[1752051078468,0.76365,2618.7,2618.6,0.76366]
[1752051078766,2.23457131,2618.7,2618.6,3.74286]
[1752051082970,2.23457131,2618.7,2618.6,2.9792]
[1752051083165,2.23457131,2618.7,2618.6,1.9857]
[1752051083471,2.23457131,2618.7,2618.6,0.6354]
[1752051083966,2.87357131,2618.7,2618.6,0.6354]
[1752051086274,2.87357131,2618.7,2618.4,1.2452]
[1752051086275,0.7637,2618.5,2618.4,1.2452]
[1752051086573,2.23462131,2618.5,2618.4,2.8741]
[1752051086971,0.7637,2618.5,2618.4,2.8741]
[1752051087668,2.2371213,2618.5,2618.4,2.8741]
[1752051088172,2.2371213,2618.5,2618.4,3.63783]
[1752051088975,0.7637,2618.5,2618.4,3.63783]
[1752051089579,2.22545492,2618.5,2618.4,3.63783]
[1752051090677,1.46175492,2618.5,2618.4,3.63783]
[1752051091579,2.22545492,2618.5,2618.4,3.63783]
[1752051091874,3.42467726,2619.1,2618.7,0.76362]
[1752051092079,0.76358,2618.9,2618.8,2.9776]
[1752051092280,2.22546594,2618.9,2618.8,3.613]
[1752051092480,2.22546594,2618.9,2618.8,4.37661]
[1752051092874,2.22546594,2618.9,2618.8,3.613]
[1752051093380,2.22546594,2618.9,2618.8,4.37661]
[1752051093881,1.46188594,2618.9,2618.8,4.37661]
[1752051095784,2.22546594,2618.9,2618.8,4.37661]
[1752051096582,1.46188594,2618.9,2618.8,4.37661]
[1752051099682,2.22546594,2618.9,2618.8,4.37661]
[1752051102993,1.46188594,2618.9,2618.8,4.37661]
[1752051103587,3.21352137,2619.2,2619.1,0.76352]
[1752051103782,4.67457534,2619.2,2619.1,3.65332527]
[1752051107588,1.46677534,2619.2,2619.1,3.65332527]
[1752051107793,0.00572137,2619.2,2619.1,3.65332527]
[1752051107990,0.00572137,2619.2,2619.1,5.02812527]
[1752051108192,3.2078,2619.6,2619.5,2.04310527]
[1752051108392,5.43056954,2619.6,2619.5,2.3735]
[1752051108692,4.66718954,2619.6,2619.5,3.65320527]
[1752051110096,5.43056954,2619.6,2619.5,1.6101]
[1752051110494,1.90858,2619.5,2618.3,5.71604469]
[1752051110795,0.76381,2618.1,2618.0,1.21179922]
[1752051111096,45.28750527,2618.1,2617.3,3.01583]
[1752051111395,3.97172,2617.8,2617.4,2.04371527]
[1752051111594,3.97172,2617.8,2617.7,0.631]
[1752051113085,0.76396,2617.6,2617.5,1.2727]
[1752051113286,0.76396,2617.6,2617.5,1.9037]
[1752051114093,0.76396,2617.6,2617.5,2.8828]
[1752051115204,2.45145095,2617.6,2617.5,2.8828]
[1752051115995,2.45145095,2617.6,2617.5,0.631]
[1752051116195,2.45145095,2617.6,2617.5,1.6101]
[1752051120397,1.68749095,2617.6,2617.5,3.74459]
[1752051120593,0.76395,2617.7,2617.5,3.74459]
[1752051120797,0.76395,2617.7,2617.5,2.76549]
[1752051121097,0.76395,2617.7,2617.6,0.9791]
[1752051121302,0.76393,2617.7,2617.6,1.6101]
[1752051121594,1.9099,2617.6,2615.8,3.2078]
[1752051121788,4.48750527,2616.8,2615.6,7.97733562]
[1752051121989,3.97226,2615.9,2615.8,0.43992402]
[1752051123001,3.97225,2615.9,2615.8,0.43992402]
[1752051123598,3.2078,2616.6,2615.8,5.43992402]
[1752051123799,3.2078,2616.6,2616.2,1.27970527]
[1752051124000,3.97205,2616.6,2616.3,1.3344]
[1752051125001,0.76429,2616.5,2616.3,1.3344]
[1752051125201,3.2078,2616.6,2616.5,0.631]
[1752051125597,3.2078,2616.6,2616.5,1.9824]
[1752051125902,0.7642,2616.8,2616.5,1.9824]
[1752051126203,0.76422,2616.7,2616.5,1.9824]
[1752051126900,0.76422,2616.7,2616.6,0.9791]
[1752051127101,0.76421,2616.8,2616.6,1.6101]
[1752051127301,0.76421,2616.8,2616.7,1.3685]
[1752051127501,0.76421,2616.8,2616.7,2.9786]
[1752051127698,3.97199,2616.9,2616.7,2.9786]
[1752051127897,3.2078,2616.9,2616.8,1.3685]
[1752051128197,3.97189,2617.2,2616.9,0.76414]
[1752051128400,3.97189,2617.2,2617.1,0.6799]
[1752051128596,3.97189,2617.2,2617.1,1.6918]
[1752051129499,3.2078,2617.2,2617.1,1.6918]
[1752051130399,3.2078,2617.2,2617.1,2.45591]
[1752051131204,4.93772805,2617.2,2617.1,2.45591]
[1752051131903,4.93772805,2617.2,2617.1,3.10901]
[1752051132696,4.93772805,2617.2,2617.1,4.38871527]
[1752051133206,3.2078,2617.2,2617.1,4.38871527]
[1752051137205,0.76402,2617.4,2617.3,0.76405]
[1752051137406,3.97182,2617.4,2617.3,1.44395]
[1752051137606,3.97182,2617.4,2617.3,2.45585]
[1752051137906,3.2078,2617.4,2617.3,2.45585]
[1752051139002,3.97182,2617.4,2617.3,2.45585]
[1752051139508,3.2078,2617.4,2617.3,2.45585]
[1752051140008,3.2078,2617.4,2617.3,3.73555527]
[1752051141509,3.2078,2617.4,2617.3,2.45585]
[1752051144010,0.76396,2617.6,2617.5,0.76399]
[1752051144207,0.76396,2617.6,2617.5,1.44389]
[1752051144408,2.48819482,2617.6,2617.5,2.45579]
[1752051145915,2.48819482,2617.6,2617.5,1.6918]
[1752051146718,2.48819482,2617.6,2617.5,2.45579]
[1752051149415,2.48819482,2617.6,2617.5,1.6918]
[1752051150518,2.48819482,2617.6,2617.5,2.45579]
[1752051155124,2.48819482,2617.6,2617.5,1.6918]
[1752051155322,2.48819482,2617.6,2617.5,1.44389]
[1752051158823,2.48819482,2617.6,2617.5,0.76399]
[1752051159023,2.48819482,2617.6,2617.5,2.35759]
[1752051160027,1.72423482,2617.6,2617.5,2.35759]
[1752051161426,2.48819482,2617.6,2617.5,2.35759]
[1752051161628,1.72423482,2617.6,2617.5,2.35759]
[1752051162528,1.72423482,2617.6,2617.5,3.69779]
[1752051167526,3.2078,2618.0,2617.5,3.2078]
[1752051167727,3.2078,2618.0,2606.0,25.09415624]
[1752051167728,3.2078,2617.0,2615.9,5.72548401]
[1752051167937,3.2078,2616.0,2615.9,0.642]
[1752051168131,0.76447,2615.9,2615.7,0.9516]
[1752051168328,3.4143356,2616.2,2615.9,0.642]
[1752051168532,6.6221356,2616.3,2616.1,1.27970527]
[1752051168735,3.2078,2616.3,2616.2,1.5936]
[1752051168935,3.97214,2616.3,2616.2,2.8662]
[1752051169141,3.97214,2616.3,2616.2,1.5936]
[1752051171145,3.2078,2616.3,2616.2,0.642]
[1752051171341,3.2078,2616.3,2616.0,0.9516]
[1752051171540,3.97214,2616.3,2616.2,0.642]
[1752051173039,9.2078,2616.3,2614.0,0.9516]
[1752051173242,0.76484,2614.6,2614.5,4.90084401]
[1752051173543,0.76484,2614.6,2614.5,1.5936]
[1752051173544,3.2078,2614.6,2614.5,1.5936]
[1752051173738,3.97264,2614.6,2614.5,1.5936]
[1752051173932,3.97264,2614.6,2614.5,0.642]
[1752051174841,3.97264,2614.6,2614.1,1.3748]
[1752051174842,0.76494,2614.3,2614.1,1.3748]
[1752051175040,3.2078,2614.2,2614.1,1.3748]
[1752051175245,0.765,2614.1,2613.6,0.76511]
[1752051175444,3.2078,2613.9,2613.7,0.76509]
[1752051175643,3.2078,2613.9,2613.8,2.9684]
[1752051175847,3.2078,2613.9,2613.8,3.73347]
[1752051176043,3.2078,2614.3,2614.1,0.76498]
[1752051176246,3.2078,2614.5,2614.1,1.5936]
[1752051176548,0.76492,2614.4,2614.1,1.5936]
[1752051176745,0.76492,2614.4,2614.2,1.3542]
[1752051177047,0.76492,2614.4,2614.2,1.9962]
[1752051177247,3.97269,2614.5,2614.2,1.9962]
[1752051177540,3.97269,2614.5,2614.2,2.9478]
[1752051177949,3.2078,2614.5,2614.2,1.9962]
[1752051178143,3.2078,2614.5,2614.3,2.3058]
[1752051178443,3.2078,2614.5,2614.4,2.3585]
[1752051178647,3.2078,2614.5,2614.4,3.7127]
[1752051178845,2.67944474,2615.2,2614.4,2.9478]
[1752051179037,3.2078,2614.8,2614.4,2.9478]
[1752051179243,3.2078,2614.8,2614.5,0.9516]
[1752051179537,5.88724474,2614.6,2613.4,0.18559795]
[1752051179741,3.2078,2613.7,2613.6,0.76513]
[1752051179951,3.2078,2613.7,2613.6,0.642]
[1752051180151,3.2078,2613.7,2613.6,1.40713]
[1752051180351,3.2078,2613.7,2613.6,0.642]
[1752051180751,3.2078,2613.7,2613.6,1.40713]
[1752051181251,3.2078,2613.7,2613.6,0.642]
[1752051181447,3.2078,2614.0,2613.6,0.642]
[1752051181648,3.2078,2614.3,2614.2,0.76496]
[1752051181945,3.2078,2614.6,2614.1,56.363]
[1752051182151,3.2078,2614.6,2614.5,0.76485]
[1752051182850,3.2078,2615.1,2614.6,0.76482]
[1752051183050,3.97251,2615.1,2614.3,1.2765]
[1752051183247,3.97251,2615.1,2614.8,0.76477]
[1752051184148,3.2078,2615.1,2614.9,0.76475]
[1752051184351,3.2078,2615.1,2614.7,56.369]
[1752051184540,3.2078,2615.1,2614.8,1.2765]
[1752051184747,3.2078,2615.4,2614.8,2.2281]
[1752051184941,3.2078,2615.4,2615.2,0.76467]
[1752051185147,3.97242,2615.4,2615.2,56.318]
[1752051185461,1.60694762,2615.3,2615.2,57.08267]
[1752051185849,3.2078,2615.4,2615.3,0.76464]
[1752051186150,3.2078,2615.4,2615.3,1.40664]
[1752051186351,3.2078,2615.4,2615.3,3.67194]
[1752051187043,5.88724474,2616.2,2615.8,0.76448]
[1752051187248,1.60750658,2616.1,2615.9,0.76445]
[1752051187447,3.2078,2616.2,2615.9,1.71606]
[1752051187448,1.60750658,2616.0,2615.9,1.71606]
[1752051187749,1.60776747,2616.1,2615.9,1.71606]
[1752051187949,3.2078,2616.2,2616.0,2.3509]
[1752051188255,1.60771855,2616.1,2616.0,3.11533]
[1752051188648,3.2078,2616.2,2616.1,0.7644]
[1752051188849,4.81632266,2616.2,2616.1,0.7644]
[1752051189148,4.81632266,2616.2,2616.1,56.225]
[1752051189458,3.97217,2616.2,2616.1,56.225]
[1752051191857,0.76437,2616.2,2616.1,56.225]
[1752051192656,0.76437,2616.3,2616.1,56.225]
[1752051192857,0.76437,2616.2,2616.1,56.225]
[1752051194157,0.76437,2616.2,2616.1,58.0266]
[1752051194756,0.76437,2616.2,2616.1,57.2622]
[1752051195157,0.76437,2616.2,2616.1,56.225]
[1752051195560,0.76437,2616.2,2616.1,56.9894]
[1752051196858,3.2078,2616.4,2616.1,56.225]
[1752051197157,0.76438,2616.2,2616.1,56.98939]
[1752051198464,0.76438,2616.2,2616.1,58.02659]
[1752051198764,3.2078,2616.4,2616.1,57.2622]
[1752051198961,0.76435,2616.3,2616.2,0.76436]
[1752051199162,0.76435,2616.3,2616.2,2.76276]
[1752051199661,0.76435,2616.3,2616.2,1.9984]
[1752051200261,0.76435,2616.3,2616.2,1.3714]
[1752051200462,0.76437,2616.2,2616.1,56.225]
[1752051201657,0.76437,2616.2,2616.1,56.9894]
[1752051202361,0.83352978,2616.2,2616.1,56.9894]
[1752051203161,0.06915978,2616.2,2616.1,56.9894]
[1752051203359,0.06915978,2616.2,2616.1,58.0266]
[1752051203664,0.06915978,2616.2,2616.1,61.2344]
[1752051210967,3.97196,2617.0,2616.9,0.76417]
[1752051211270,5.57958213,2617.0,2616.9,56.89317]
[1752051211469,5.57958213,2617.0,2616.9,56.129]
[1752051212869,5.57958213,2617.0,2616.9,56.89317]
[1752051213069,5.57958213,2617.0,2616.9,56.129]
[1752051213471,8.99391773,2617.0,2616.9,56.89317]
[1752051213971,8.99391773,2617.0,2616.9,56.129]
[1752051215367,8.99391773,2617.0,2616.9,56.89317]
[1752051217365,5.57958213,2617.0,2616.9,56.89317]
[1752051218676,5.57958213,2617.0,2616.9,56.129]
[1752051218972,5.57958213,2617.0,2616.9,56.89317]
[1752051219171,5.57958213,2617.0,2616.9,56.129]
[1752051219876,5.57958213,2617.0,2616.9,56.89317]
[1752051220172,5.57958213,2617.0,2616.9,56.129]
[1752051220573,5.57958213,2617.0,2616.9,56.89317]
[1752051220873,5.57958213,2617.0,2616.9,56.129]
[1752051221168,5.63241104,2617.5,2617.1,0.76411]
[1752051221373,0.9458,2618.3,2617.4,3.8308]
[1752051221673,3.40290848,2617.9,2617.8,0.76388]
[1752051221869,0.6359,2617.9,2617.8,56.76888]
[1752051222071,0.6359,2617.9,2617.8,56.005]
[1752051222271,3.40290848,2618.1,2618.0,0.76385]
[1752051222468,4.34870848,2618.3,2618.1,0.7638]
[1752051222668,0.9458,2618.3,2618.2,55.354]
[1752051222869,0.6359,2618.3,2618.2,56.11779]
[1752051223069,3.40290848,2618.4,2618.3,0.76376]
[1752051223270,2.0480322,2618.7,2618.3,0.623]
[1752051223575,1.2843722,2618.7,2618.5,0.76369]
[1752051223776,1.2843722,2618.7,2618.6,55.329]
[1752051224072,2.6839222,2618.7,2618.6,55.329]
[1752051224275,8.6297222,2618.7,2618.6,55.329]
[1752051224873,7.34535,2618.7,2618.6,55.329]
[1752051225466,2.34535,2618.7,2618.6,55.329]
[1752051227576,2.34535,2618.7,2618.6,55.83764785]
[1752051231383,1.39955,2618.7,2618.6,55.83764785]
[1752051231981,1.39955,2618.7,2618.6,0.50864785]
[1752051232183,2.34535,2618.7,2618.6,0.50864785]
[1752051232785,2.34535,2618.7,2618.6,55.54764785]
[1752051233186,3.83591649,2618.7,2618.6,55.54764785]
[1752051233487,3.83591649,2618.7,2618.6,55.039]
[1752051237388,2.89011649,2618.7,2618.6,55.039]
[1752051237684,2.25421649,2618.7,2618.6,55.039]
[1752051238091,2.89011649,2618.7,2618.6,55.039]
[1752051238992,2.8544137,2618.7,2618.6,55.039]
[1752051240592,2.8544137,2618.7,2618.6,55.80267]
[1752051240791,2.8544137,2618.7,2618.6,55.9755]
[1752051241096,2.85526426,2618.7,2618.6,55.9755]
[1752051241397,2.85526426,2618.7,2618.6,57.33]
[1752051241893,2.09161426,2618.7,2618.6,57.33]
[1752051242096,2.09161426,2618.7,2618.6,58.09367]
[1752051242097,1.45571426,2618.7,2618.6,58.09367]
[1752051242289,0.76354,2619.1,2618.6,57.33]
[1752051242490,1.45654618,2619.0,2618.9,0.76357]
[1752051242700,1.45654618,2619.0,2618.9,56.17757]
[1752051243201,0.76356,2619.0,2618.9,56.7685]
[1752051243405,0.76355,2619.1,2618.9,56.7685]
[1752051243602,0.76355,2619.1,2618.9,57.53207]
[1752051243789,0.76356,2619.0,2618.9,57.53207]
[1752051243994,0.76356,2619.0,2618.9,56.7685]
[1752051244195,1.39946,2619.0,2618.9,56.7685]
[1752051244891,2.68322267,2619.0,2618.9,56.7685]
[1752051246098,2.04732267,2619.0,2618.9,56.1455]
[1752051246495,2.68322267,2619.0,2618.9,56.1455]
[1752051246896,1.39946,2619.0,2618.9,56.1455]
[1752051248403,2.85897666,2619.0,2618.9,56.1455]
[1752051249800,2.85897666,2619.0,2618.9,56.67106607]
[1752051250903,2.85897666,2619.0,2618.9,56.67153657]
[1752051253200,2.85897666,2619.0,2618.9,56.1455]
[1752051254002,3.83257666,2619.0,2618.9,56.1455]
[1752051254205,2.85897666,2619.0,2618.9,56.1455]
[1752051256304,3.83257666,2619.0,2618.9,56.1455]
[1752051257301,2.85897666,2619.0,2618.9,56.1455]
[1752051262010,2.8622663,2619.0,2618.9,56.1455]
[1752051269306,0.76362,2618.8,2618.7,0.6597]
[1752051269507,0.76373,2618.4,2618.3,4.556]
[1752051269707,1.45303,2618.4,2618.3,33.8558]
[1752051269913,2.9158363,2618.4,2618.3,33.8558]
[1752051271312,2.9158363,2618.4,2618.3,6.7698]
[1752051271510,2.9158363,2618.4,2618.3,33.8368]
[1752051272514,2.9158363,2618.4,2618.3,6.7698]
[1752051272714,2.9158363,2618.4,2618.3,33.8228]
[1752051274914,0.76376,2618.3,2618.2,0.00573241]
[1752051275120,2.9158663,2618.3,2618.2,0.65853241]
[1752051275515,2.9158663,2618.3,2618.2,2.02593241]
[1752051276523,3.8894663,2618.3,2618.2,0.00573241]
[1752051279226,8.8894663,2618.3,2618.2,2.41e-06]
[1752051281523,3.8894663,2618.3,2618.2,2.41e-06]
[1752051283017,7.0972663,2618.3,2618.2,2.41e-06]
[1752051286618,12.0972663,2618.3,2618.2,2.41e-06]
[1752051286825,13.1396663,2618.3,2618.2,2.41e-06]
[1752051287222,40.1036663,2618.3,2618.2,2.41e-06]
[1752051287426,35.1036663,2618.3,2618.2,2.41e-06]
[1752051289130,13.1396663,2618.3,2618.2,2.41e-06]
[1752051289624,41.36542897,2618.3,2618.2,2.41e-06]
[1752051289823,44.78000563,2618.3,2618.2,2.41e-06]
[1752051290230,85.58000563,2618.3,2618.2,2.41e-06]